bitfinex-derivatives/quotes_ETHF0:USTF0_20250620
["timestamp","ask_amount","ask_price","bid_price","bid_amount"]
[1750436361819,0.80452,2485.7,2485.6,0.80453]
[1750436362014,0.80452,2485.7,2485.6,0.80452]
[1750436362209,3.2078,2485.9,2485.8,0.80448]
[1750436362414,3.2078,2485.9,2485.4,3.32673]
[1750436362415,0.80444,2486.0,2485.9,0.80445]
[1750436362615,0.80441,2486.1,2486.0,0.80441]
[1750436362816,0.80443,2486.0,2485.9,0.80443]
[1750436363015,7.667,2486.3,2485.7,4.523]
[1750436363520,0.80439,2486.2,2486.1,0.80436]
[1750436363813,0.80439,2486.1,2486.0,4.0122]
[1750436364021,0.80438,2486.2,2486.1,0.80437]
[1750436364407,0.80434,2486.3,2486.2,0.80432]
[1750436364612,4.01204,2486.6,2486.5,0.80426]
[1750436364811,8.43521,2486.7,2486.6,0.80423]
[1750436365207,7.631,2486.7,2486.6,0.80423]
[1750436365414,0.80424,2486.6,2486.5,0.80423]
[1750436366223,0.80422,2486.7,2486.6,0.80421]
[1750436366420,2.01081968,2486.8,2486.7,0.80419]
[1750436366624,1.20663968,2486.8,2486.7,0.80419]
[1750436366919,2.01079968,2486.8,2486.7,0.80419]
[1750436367118,1.20663968,2486.8,2486.7,0.80419]
[1750436367318,1.20663968,2486.8,2486.7,4.01199]
[1750436367514,2.01079968,2486.8,2486.7,0.80419]
[1750436367716,1.20663968,2486.8,2486.7,0.80419]
[1750436368116,0.80424,2486.6,2486.4,3.2078]
[1750436368328,0.80419,2486.8,2486.7,0.80418]
[1750436368526,3.14026836,2487.0,2486.9,0.80413]
[1750436368718,2.00998,2487.4,2486.9,0.80413]
[1750436368719,2.37412901,2487.6,2487.0,2.01024]
[1750436368921,0.80402,2487.3,2487.1,3.2078]
[1750436369218,1.21246547,2487.2,2487.1,4.01186]
[1750436370125,1.21246547,2487.2,2487.1,9.01186]
[1750436370312,0.80397,2487.5,2487.4,0.80395]
[1750436370727,1.09171244,2487.6,2487.5,0.80394]
[1750436370931,2.37412901,2487.7,2487.1,3.2078]
[1750436371127,3.67362901,2487.6,2487.1,3.2078]
[1750436371317,0.80403,2487.2,2487.1,3.2078]
[1750436371521,0.8041,2487.0,2486.9,0.80411]
[1750436371914,0.80405,2487.2,2487.1,0.80403]
[1750436372725,0.80408,2487.1,2487.0,0.80407]
[1750436372923,0.80413,2486.9,2486.8,0.80415]
[1750436373123,0.8042,2486.7,2486.6,0.80423]
[1750436373926,0.80423,2486.6,2486.5,4.01203]
[1750436374116,0.80422,2486.7,2486.6,0.80421]
[1750436374325,0.80423,2486.6,2486.5,3.2078]
[1750436374721,8.88909901,2486.9,2486.4,0.80427]
[1750436374927,0.80431,2486.4,2486.3,0.8043]
[1750436375126,0.80432,2486.4,2486.2,3.2078]
[1750436375427,0.80437,2486.2,2486.1,0.80437]
[1750436375730,0.8044,2486.1,2486.0,0.80439]
[1750436376023,0.8044,2486.1,2486.0,0.8044]
[1750436376225,0.80443,2486.0,2485.9,0.80443]
[1750436376627,0.80445,2485.9,2485.8,0.80445]
[1750436377130,0.80445,2486.0,2485.9,0.80443]
[1750436377334,0.80445,2485.9,2485.8,3.2078]
[1750436378019,0.80461,2485.5,2485.4,0.8046]
[1750436378220,0.80469,2485.2,2485.0,0.7475]
[1750436378420,2.378628,2485.6,2485.0,0.7475]
[1750436378621,0.80464,2485.4,2485.3,0.80463]
[1750436379433,2.378628,2485.6,2485.2,3.2078]
[1750436379730,2.378628,2485.6,2485.5,0.80459]
[1750436379929,2.378628,2485.7,2485.6,0.80455]
[1750436380229,2.378628,2485.8,2485.7,0.80452]
[1750436380431,0.80452,2485.8,2485.7,0.80451]
[1750436380930,0.80455,2485.7,2485.6,0.80451]
[1750436381725,0.80465,2485.4,2485.3,0.80463]
[1750436381928,0.80478,2484.9,2484.8,4.01259]
[1750436382131,0.80478,2484.9,2484.8,3.2078]
[1750436382328,1.20234352,2484.9,2484.4,3.2078]
[1750436382634,2.01219,2484.6,2484.0,3.2078]
[1750436382831,0.80497,2484.4,2484.3,0.80496]
[1750436383026,2.00731352,2484.4,2484.3,0.80496]
[1750436383631,2.00731352,2484.4,2484.3,0.80497]
[1750436383632,2.00729352,2484.4,2484.3,0.80497]
[1750436383829,1.20234352,2484.4,2484.3,0.80497]
[1750436384034,1.20234352,2484.4,2484.0,8.2078]
[1750436384331,8.43488,2484.6,2484.5,0.8049]
[1750436384529,9.63480101,2484.6,2484.5,0.8049]
[1750436384831,1.19992101,2484.6,2484.5,0.8049]
[1750436385217,4.491,2485.4,2484.6,2.01219]
[1750436385422,0.80471,2485.2,2485.1,0.80471]
[1750436385626,1.20055274,2485.2,2485.1,0.80471]
[1750436385934,2.00523274,2485.2,2485.1,0.80471]
[1750436386426,1.20055274,2485.2,2485.1,0.80471]
[1750436386636,9.63523274,2485.2,2485.1,0.80471]
[1750436387130,0.80477,2485.0,2484.9,0.80476]
[1750436387333,0.80479,2484.9,2484.8,0.80479]
[1750436387938,0.80476,2485.0,2484.9,0.80476]
[1750436388229,0.80476,2485.0,2484.9,0.80475]
[1750436388423,1.20009801,2485.0,2484.7,5.21989]
[1750436388623,34.97466,2485.3,2485.2,0.80466]
[1750436388933,2.00471823,2485.3,2485.2,0.80466]
[1750436389131,0.80468,2485.2,2485.1,0.80468]
[1750436389322,1.20005823,2485.2,2484.7,3.2078]
[1750436389528,0.80481,2484.9,2484.8,0.80479]
[1750436389930,0.80484,2484.8,2484.7,0.80482]
[1750436390437,0.80481,2484.9,2484.8,0.80479]
[1750436390737,0.80484,2484.8,2484.7,0.80483]
[1750436390932,0.8048,2484.9,2484.8,0.80478]
[1750436391128,0.80483,2484.8,2484.7,0.80482]
[1750436391334,3.2078,2485.1,2484.6,2.01217]
[1750436391636,0.80481,2484.9,2484.8,0.80479]
[1750436391934,38.6237,2485.1,2485.0,0.80474]
[1750436391935,11.64355,2485.1,2485.0,0.80474]
[1750436392233,0.80476,2485.0,2484.9,0.80475]
[1750436392534,10.8388,2485.1,2484.8,0.80478]
[1750436392535,0.80479,2484.9,2484.8,0.80478]
[1750436394137,0.80487,2484.7,2484.6,0.80484]
[1750436394338,12.0991,2485.1,2484.5,2.01226]
[1750436394538,0.8048,2484.9,2484.8,0.80477]
[1750436394737,4.01253,2485.1,2485.0,0.80474]
[1750436395336,3.2078,2485.1,2485.0,0.80474]
[1750436395839,0.80467,2485.3,2485.2,0.80465]
[1750436396335,4.01244,2485.4,2485.3,0.80465]
[1750436396837,0.80459,2485.5,2485.4,0.80461]
[1750436398140,0.80455,2485.7,2485.6,0.80452]
[1750436399035,0.80468,2485.3,2485.2,0.80465]
[1750436399336,2.01155,2485.4,2484.9,19.84430397]
[1750436399542,0.80474,2485.1,2485.0,0.80471]
[1750436399738,0.80474,2485.1,2485.0,2.17621]
[1750436399939,2.01177,2485.2,2484.8,4.73537]
[1750436400142,0.80477,2485.0,2484.9,0.80473]
[1750436400335,0.80477,2484.9,2484.8,4.73537]
[1750436401231,3.39912,2485.2,2484.8,3.9306]
[1750436401548,0.80475,2485.1,2485.0,0.80471]
[1750436401841,0.80477,2484.9,2484.8,4.73537]
[1750436402237,0.80477,2485.0,2484.9,0.80474]
[1750436402537,0.80477,2484.9,2484.8,3.2078]
[1750436403146,0.80487,2484.6,2484.5,2.11207]
[1750436403339,0.80487,2484.6,2484.5,0.80487]
[1750436403543,0.8049,2484.5,2484.4,4.01271]
[1750436403738,0.8049,2484.5,2484.4,4.01274]
[1750436403930,0.80489,2484.6,2484.5,0.80487]
[1750436404138,0.80487,2484.7,2484.6,0.80485]
[1750436404443,0.80478,2484.9,2484.8,0.80476]
[1750436404641,0.80484,2484.8,2484.7,0.80481]
[1750436404842,2.01195,2484.9,2484.4,3.2078]
[1750436405045,0.80503,2484.2,2484.1,0.80501]
[1750436405339,0.80499,2484.3,2484.2,0.80497]
[1750436405736,0.80503,2484.2,2484.1,0.80501]
[1750436406138,0.80503,2484.2,2483.9,2.01274]
[1750436406139,2.01244,2484.3,2483.8,0.8051]
[1750436406339,0.80513,2483.9,2483.8,0.8051]
[1750436407250,1.3027,2484.2,2483.7,3.9568]
[1750436407546,0.80523,2483.6,2483.5,0.80521]
[1750436407747,0.80518,2483.7,2483.6,0.80516]
[1750436408052,0.80514,2483.8,2483.7,0.80512]
[1750436408341,0.80517,2483.8,2483.7,0.80513]
[1750436408546,0.80523,2483.6,2483.5,0.80521]
[1750436409147,0.80523,2483.5,2483.4,4.5935]
[1750436409344,0.80529,2483.4,2483.3,0.80527]
[1750436409738,0.80529,2483.4,2483.1,4.5694]
[1750436409739,0.80532,2483.2,2483.1,3.2078]
[1750436409944,0.80532,2483.2,2482.7,2.01367]
[1750436409945,2.0131,2483.5,2482.8,3.2078]
[1750436410151,0.80538,2483.1,2483.0,0.80537]
[1750436410446,3.2824,2483.5,2482.9,0.8054]
[1750436410447,0.80541,2483.0,2482.9,0.8054]
[1750436410745,0.80537,2483.1,2482.8,3.2078]
[1750436410946,3.2078,2483.6,2482.8,16.21718397]
[1750436411149,8.7493,2483.8,2483.4,3.2078]
[1750436411343,0.80517,2483.7,2483.6,0.80516]
[1750436411849,10.76216,2483.8,2483.2,1.3616]
[1750436412044,0.80529,2483.3,2483.2,0.80531]
[1750436412244,3.2078,2483.6,2483.0,2.01348]
[1750436412447,0.80517,2483.7,2483.4,3.2078]
[1750436412652,0.699,2483.9,2483.4,3.2078]
[1750436412851,2.79211,2483.9,2483.8,0.80513]
[1750436413047,0.80514,2483.8,2483.7,0.80514]
[1750436413244,1.987,2483.9,2483.1,3.2078]
[1750436413449,1.987,2483.9,2483.2,0.80532]
[1750436413450,0.80532,2483.3,2483.2,0.80532]
[1750436413749,0.80534,2483.2,2483.1,0.80534]
[1750436414550,0.80537,2483.1,2483.0,0.80539]
[1750436414750,3.2078,2483.5,2483.3,0.80526]
[1750436414955,0.8053,2483.3,2483.2,0.8053]
[1750436415248,0.8053,2483.3,2482.9,3.38956]
[1750436415249,3.2078,2483.5,2482.8,3.2078]
[1750436415443,0.80539,2483.1,2483.0,0.80538]
[1750436415644,1.2707,2483.4,2482.8,3.2078]
[1750436415848,0.80531,2483.3,2483.2,0.80529]
[1750436416054,0.80524,2483.6,2483.5,0.8052]
[1750436416355,3.2078,2484.1,2483.4,14.20360397]
[1750436416545,2.01259,2484.1,2483.5,5.22086]
[1750436416747,0.80513,2483.9,2483.8,0.80511]
[1750436416949,0.80512,2483.9,2483.8,0.8051]
[1750436417148,0.80508,2484.0,2483.9,0.80506]
[1750436417348,0.80512,2483.9,2483.8,0.8051]
[1750436417657,4.4785,2484.1,2483.5,3.29606]
[1750436417855,4.4785,2484.1,2483.8,0.80512]
[1750436418060,4.4785,2484.1,2483.5,4.4908]
[1750436418061,2.01267,2484.0,2483.5,4.4908]
[1750436418246,1.2707,2484.0,2483.3,2.74222]
[1750436418556,5.22045,2484.1,2483.8,0.80511]
[1750436418557,0.80512,2483.9,2483.8,0.80511]
[1750436418952,0.80515,2483.8,2483.7,0.80514]
[1750436419351,0.80518,2483.7,2483.6,0.80516]
[1750436419859,0.80515,2483.8,2483.7,0.80513]
[1750436420448,0.80512,2483.9,2483.8,0.80511]
[1750436420654,0.80524,2483.5,2483.4,0.80523]
[1750436420956,0.80521,2483.6,2483.5,0.8052]
[1750436421357,1.3574,2483.8,2483.5,0.8052]
[1750436421554,0.80515,2483.8,2483.7,0.80513]
[1750436421856,0.7481,2484.0,2483.5,2.01307]
[1750436422062,0.80519,2483.7,2483.6,0.80519]
[1750436422357,0.80515,2483.8,2483.7,0.80513]
[1750436422560,0.80512,2483.9,2483.8,0.8051]
[1750436422755,11.49387,2484.1,2484.0,0.80506]
[1750436422960,12.70356537,2484.1,2484.0,0.80506]
[1750436423751,0.80516,2483.8,2483.7,0.80515]
[1750436423954,3.3442,2484.0,2483.3,2.74223]
[1750436424147,0.8052,2483.7,2483.6,0.80518]
[1750436424352,0.80515,2483.8,2483.7,0.80513]
[1750436424547,0.80526,2483.4,2483.3,1.53425]
[1750436424850,0.80526,2483.4,2483.2,3.2078]
[1750436424851,0.80525,2483.5,2483.4,0.80522]
[1750436425356,0.80533,2483.3,2483.2,0.80529]
[1750436425554,0.80528,2483.4,2483.3,0.80525]
[1750436425756,0.8053,2483.3,2483.2,0.80528]
[1750436426158,0.80538,2483.1,2483.0,0.80536]
[1750436426354,10.5608,2483.2,2482.5,3.2078]
[1750436426659,2.01348,2483.0,2482.2,10.5608]
[1750436426849,0.80555,2482.6,2482.5,0.80554]
[1750436427257,2.01366,2482.8,2482.2,4.5693]
[1750436427456,0.80557,2482.5,2482.4,0.80556]
[1750436427656,0.80554,2482.6,2482.5,0.80554]
[1750436427858,2.07181,2482.7,2482.6,0.80552]
[1750436428161,0.80562,2482.3,2482.2,3.2078]
[1750436428361,0.80563,2482.3,2482.1,0.80565]
[1750436428560,3.2078,2482.8,2482.2,3.2078]
[1750436428761,3.2078,2483.1,2482.5,4.01335]
[1750436428959,3.2078,2483.4,2483.2,0.80531]
[1750436429158,1.20581464,2483.3,2483.2,0.80531]
[1750436429362,4.01308,2483.4,2483.3,0.80529]
[1750436429663,4.41457439,2483.4,2483.2,0.8053]
[1750436429864,1.20677439,2483.3,2482.9,0.80541]
[1750436430071,0.80538,2483.1,2482.9,0.80541]
[1750436430357,1.2663,2483.3,2482.6,2.0091]
[1750436430358,0.80548,2482.8,2482.6,2.81461]
[1750436430558,0.80542,2482.9,2482.7,0.80547]
[1750436430959,0.80545,2482.8,2482.7,0.80547]
[1750436431163,0.80545,2482.8,2482.6,0.7257]
[1750436431164,2.20093,2482.9,2482.8,0.80545]
[1750436431664,1.3955,2482.9,2482.8,0.80545]
[1750436432566,2.20092,2482.9,2482.8,0.80545]
[1750436432766,1.3955,2482.9,2482.6,0.7257]
[1750436432966,2.20094,2482.9,2482.8,0.80545]
[1750436433268,3.2078,2483.0,2482.9,0.80542]
[1750436433763,4.0131,2483.3,2483.2,0.8053]
[1750436433963,5.22354161,2483.3,2483.2,0.8053]
[1750436434363,3.2078,2483.3,2483.2,0.8053]
[1750436434966,3.2078,2483.6,2483.3,2.01316]
[1750436435163,3.2078,2483.6,2483.4,1.3805]
[1750436435471,3.2078,2483.6,2483.5,0.80523]
[1750436435671,4.41983646,2483.6,2483.5,0.80523]
[1750436436059,4.41983646,2483.6,2483.2,0.7317]
[1750436436372,2.01728637,2483.5,2483.4,0.80525]
[1750436436868,3.2078,2483.6,2483.5,0.80523]
[1750436437061,4.42016159,2483.6,2483.5,0.80523]
[1750436437375,3.2078,2483.6,2483.5,0.80523]
[1750436437573,4.42040456,2483.6,2483.5,0.80523]
[1750436437775,5.22559456,2483.6,2483.5,0.80523]
[1750436438067,4.42040456,2483.6,2483.5,0.80523]
[1750436438365,4.42040456,2483.6,2483.2,0.7317]
[1750436438665,3.2078,2483.3,2483.2,0.80532]
[1750436439065,0.80524,2483.5,2483.1,2.01334]
[1750436439267,28.2858,2483.9,2483.1,2.01334]
[1750436439268,3.2078,2483.9,2483.4,2.01315]
[1750436439569,3.2078,2483.9,2483.8,0.8051]
[1750436439772,4.4202011,2483.9,2483.8,0.8051]
[1750436439967,3.2078,2483.9,2483.8,0.8051]
[1750436441763,4.01281,2484.2,2484.1,0.80503]
[1750436441969,5.22498268,2484.2,2484.1,0.80503]
[1750436442176,4.41997268,2484.2,2484.1,0.80503]
[1750436442368,3.2078,2484.5,2484.4,0.80493]
[1750436442561,3.2078,2484.5,2484.2,2.1547]
[1750436442760,3.2078,2484.5,2484.3,0.80495]
[1750436442761,0.80496,2484.4,2484.3,0.80495]
[1750436443275,3.2078,2484.5,2483.9,3.2078]
[1750436443473,0.80502,2484.2,2484.1,0.80502]
[1750436443770,3.2078,2484.5,2484.4,0.80493]
[1750436444175,4.0127,2484.5,2484.4,0.80493]
[1750436444371,3.2078,2484.5,2484.1,1.3211]
[1750436444672,3.2078,2484.5,2484.4,0.80493]
[1750436446778,3.2078,2484.9,2484.8,0.8048]
[1750436446967,3.28828613,2484.9,2484.8,0.8048]
[1750436447368,4.09305613,2484.9,2484.8,0.8048]
[1750436447564,2.01202,2484.8,2484.3,5.2194]
[1750436447767,3.2078,2484.5,2483.7,13.00866397]
[1750436447979,0.805,2484.3,2484.2,0.80498]
[1750436448169,0.80502,2484.2,2484.1,0.805]
[1750436448477,0.80505,2484.1,2484.0,0.80503]
[1750436448672,4.01282,2484.2,2484.1,0.80503]
[1750436448873,0.80506,2484.1,2484.0,0.80504]
[1750436449069,0.8051,2484.0,2483.9,0.80507]
[1750436450681,0.80517,2483.8,2483.7,0.80514]
[1750436450896,4.01292,2483.9,2483.8,0.80513]
[1750436451479,2.15236,2484.1,2484.0,0.80506]
[1750436451778,0.80513,2483.9,2483.6,1.3181]
[1750436451986,3.2078,2483.9,2483.6,0.80517]
[1750436452181,0.80518,2483.7,2483.6,0.80517]
[1750436452475,0.80515,2483.8,2483.7,0.80513]
[1750436452676,0.80519,2483.7,2483.6,0.80516]
[1750436453681,0.80515,2483.8,2483.7,0.80513]
[1750436453879,0.80518,2483.7,2483.6,0.80518]
[1750436454081,5.22059,2483.9,2483.3,2.0275]
[1750436454280,0.80526,2483.4,2483.3,2.83276]
[1750436454580,0.80529,2483.3,2483.2,0.8053]
[1750436454778,3.2078,2483.3,2482.8,3.2078]
[1750436454986,3.2078,2482.9,2482.6,0.80551]
[1750436455171,0.8055,2482.7,2482.6,0.80549]
[1750436455376,0.80555,2482.5,2482.4,1.2597]
[1750436455581,0.80558,2482.4,2482.3,1.56042]
[1750436455782,0.80556,2482.5,2482.4,0.80556]
[1750436455984,0.80558,2482.4,2482.3,0.7548]
[1750436456181,0.80557,2482.5,2482.3,0.78543902]
[1750436456483,0.80558,2482.4,2482.3,1.59102902]
[1750436456681,3.2078,2482.6,2482.3,0.78543902]
[1750436456983,1.3886,2483.0,2482.3,0.78543902]
[1750436456984,0.80549,2482.7,2482.6,0.80552]
[1750436457183,0.77493098,2482.5,2482.4,0.80556]
[1750436457380,0.80558,2482.4,2482.3,1.56039]
[1750436457684,0.80557,2482.5,2482.4,0.80557]
[1750436457879,3.2078,2482.7,2481.8,3.2078]
[1750436458184,4.01344,2482.3,2482.2,0.80565]
[1750436458681,3.2078,2482.3,2482.2,0.80565]
[1750436460783,5.22124,2483.1,2482.2,2.01413]
[1750436460986,0.8055,2482.7,2482.6,0.80549]
[1750436461280,50.253,2483.4,2482.9,2.01354]
[1750436461488,0.80528,2483.4,2483.3,0.80526]
[1750436461676,3.2078,2483.5,2483.4,0.80526]
[1750436461881,4.01303,2483.5,2483.4,0.80526]
[1750436462078,3.2078,2483.5,2483.4,0.80526]
[1750436462587,3.2078,2483.5,2483.0,3.2078]
[1750436462588,0.80544,2482.9,2482.8,0.80541]
[1750436462885,2.0132,2483.4,2482.7,0.80547]
[1750436462886,2.01348,2483.0,2482.7,0.80547]
[1750436463076,0.80549,2482.8,2482.7,0.80547]
[1750436463483,2.17173,2482.9,2482.8,0.80545]
[1750436463688,0.80544,2482.9,2482.8,0.80542]
[1750436464083,1.5213,2483.1,2483.0,0.80539]
[1750436464279,0.80542,2483.0,2482.9,0.8054]
[1750436464484,1.3392,2483.3,2482.8,2.01362]
[1750436464681,3.2078,2483.5,2483.0,2.01346]
[1750436464878,0.80528,2483.4,2483.3,0.80526]
[1750436465090,4.547,2483.5,2483.1,2.01338]
[1750436465091,3.2078,2483.5,2483.4,0.80526]
[1750436465392,1.52107,2483.8,2483.7,0.80516]
[1750436466093,0.80517,2483.7,2483.6,0.80516]
[1750436466290,2.14427,2484.0,2483.9,0.8051]
[1750436466488,61.62684,2484.1,2484.0,0.80506]
[1750436466689,11.61078129,2484.1,2484.0,0.80506]
[1750436466887,8.15204,2484.1,2484.0,0.80506]
[1750436467086,1.55161,2484.2,2484.0,0.80506]
[1750436467291,1.55161,2484.2,2483.6,2.01299]
[1750436467292,0.80525,2483.5,2483.4,0.80523]
[1750436468095,0.80526,2483.4,2483.3,1.52387]
[1750436469087,26.257,2484.4,2483.3,1.52387]
[1750436469088,3.46084408,2484.1,2483.3,0.7186]
[1750436469387,0.80518,2483.7,2483.6,0.80515]
[1750436470093,0.80523,2483.5,2483.4,0.80525]
[1750436470282,0.80521,2483.6,2483.5,0.80519]
[1750436470792,2.01284,2483.8,2483.3,0.7186]
[1750436470991,2.01284,2483.8,2483.3,0.80527]
[1750436470992,0.80529,2483.4,2483.3,0.80527]
[1750436471893,0.80513,2483.9,2483.8,0.80511]
[1750436472092,0.80536,2483.1,2483.0,0.80538]
[1750436472398,0.80538,2483.1,2483.0,0.80537]
[1750436472698,0.80527,2483.4,2483.3,0.80526]
[1750436472890,7.346,2483.5,2483.1,3.27409]
[1750436473091,0.80535,2483.2,2483.1,0.80534]
[1750436473694,0.8053,2483.4,2483.3,0.80527]
[1750436474592,0.80525,2483.5,2483.4,0.80526]
[1750436474897,8.7125,2483.6,2483.3,0.80527]
[1750436475094,0.80531,2483.4,2483.3,0.80527]
[1750436475295,0.80532,2483.3,2483.2,0.80531]
[1750436475897,0.80528,2483.4,2483.3,0.80525]
[1750436476397,0.80532,2483.2,2483.1,0.80533]
[1750436477199,0.80535,2483.2,2483.1,0.80532]
[1750436477498,0.80529,2483.4,2483.3,0.80526]
[1750436478602,0.80533,2483.3,2483.2,0.8053]
[1750436478803,0.80535,2483.2,2483.1,0.80534]
[1750436479398,6.55414,2483.5,2482.8,3.2078]
[1750436479601,0.80528,2483.4,2483.3,0.80529]
[1750436479799,0.80534,2483.3,2483.2,0.80531]
[1750436479988,10.5538,2483.5,2483.2,2.0133]
[1750436480300,0.80521,2483.6,2483.5,0.80522]
[1750436480498,2.01377085,2483.7,2483.6,0.80519]
[1750436480701,2.0137656,2483.7,2483.6,0.80519]
[1750436480909,1.2085856,2483.7,2483.3,3.30213]
[1750436481207,0.80524,2483.5,2483.4,0.80522]
[1750436481392,0.80517,2483.7,2483.6,0.80516]
[1750436481705,0.80523,2483.6,2483.5,0.80521]
[1750436481908,0.80526,2483.5,2483.4,0.80523]
[1750436482406,10.5538,2483.8,2483.3,2.01323]
[1750436482701,2.01506891,2483.7,2483.6,0.80516]
[1750436483102,0.80523,2483.6,2483.5,0.8052]
[1750436483302,0.80526,2483.5,2483.4,0.80524]
[1750436483707,0.80521,2483.6,2483.5,0.80518]
[1750436484003,2.01347405,2483.6,2483.5,0.80518]
[1750436484408,2.01345405,2483.6,2483.5,0.80518]
[1750436485002,1.20826405,2483.6,2483.5,0.80518]
[1750436485505,0.80517,2483.7,2483.6,0.80519]
[1750436485705,1.20813344,2483.7,2483.6,0.80519]
[1750436486204,3.2078,2484.2,2484.1,0.80503]
[1750436486503,0.25273576,2484.5,2484.1,0.80503]
[1750436486702,0.80487,2484.7,2484.6,0.80484]
[1750436487001,4.25976331,2484.9,2484.8,0.8048]
[1750436487211,4.66271367,2484.9,2484.8,0.8048]
[1750436487503,5.46748367,2484.9,2484.8,0.83728926]
[1750436487907,5.46748367,2484.9,2484.8,0.03248926]
[1750436488110,6.80458367,2484.9,2484.8,0.03248926]
[1750436488414,0.80488,2484.6,2484.5,0.80487]
[1750436488704,12.12406331,2484.9,2484.6,0.80484]
[1750436488906,2.0122453,2484.8,2484.4,2.01234]
[1750436489113,12.12406331,2484.9,2484.8,0.8048]
[1750436489114,12.92886331,2484.9,2484.8,0.8048]
[1750436489408,14.13568307,2484.9,2484.8,0.8048]
[1750436489611,0.80482,2484.8,2484.7,0.80482]
[1750436490201,0.8049,2484.6,2484.5,0.80488]
[1750436490402,2.14132,2484.8,2484.7,0.80484]
[1750436490602,0.80482,2484.8,2484.7,0.80484]
[1750436491210,0.80485,2484.7,2484.6,0.80484]
[1750436491597,0.80492,2484.5,2484.4,0.8049]
[1750436492401,0.80489,2484.6,2484.5,0.80487]
[1750436492608,0.80483,2484.8,2484.3,2.01241]
[1750436492804,0.80486,2484.7,2484.6,0.80484]
[1750436493004,11.59076331,2484.9,2484.8,0.8048]
[1750436493206,3.2078,2484.9,2484.8,0.8048]
[1750436493509,4.01257,2484.9,2484.8,0.8048]
[1750436493710,0.80477,2484.9,2484.8,0.8048]
[1750436493912,0.80476,2485.0,2484.9,0.80474]
[1750436494099,1.0582659,2485.0,2484.9,0.80474]
[1750436494302,0.80482,2484.8,2484.7,0.8048]
[1750436494503,2.18245,2485.0,2484.9,0.80477]
[1750436494906,1.3777,2485.0,2484.9,0.80477]
[1750436495110,1.62900327,2485.0,2484.9,0.80477]
[1750436495710,2.43374327,2485.0,2484.9,0.80477]
[1750436496615,1.62900327,2485.0,2484.9,0.80477]
[1750436496814,3.9571,2485.2,2485.1,0.80471]
[1750436497015,3.2078,2485.2,2485.1,0.80471]
[1750436498522,2.0684,2485.6,2485.5,0.80458]
[1750436498817,36.42396,2485.6,2485.5,0.80458]
[1750436499013,34.2417,2485.6,2485.5,0.80458]
[1750436499210,0.80455,2485.6,2485.5,0.80458]
[1750436499410,27.02455,2485.6,2485.5,0.80458]
[1750436499810,26.22,2485.6,2485.5,0.80458]
[1750436500009,3.2078,2485.7,2485.6,0.80455]
[1750436500218,29.67611211,2485.7,2485.6,0.80455]
[1750436500417,30.47962211,2485.7,2485.6,0.80455]
[1750436500907,30.47964211,2485.7,2485.6,0.80455]
[1750436501317,0.80463,2485.4,2485.3,0.80462]
[1750436502718,0.80463,2485.4,2485.1,3.2078]
[1750436503014,3.2078,2485.4,2484.9,2.0119]
[1750436503214,0.80468,2485.3,2485.2,0.80464]
[1750436504215,3.2078,2485.4,2485.3,0.80464]
[1750436504420,4.01241,2485.4,2485.3,0.80464]
[1750436505010,3.2078,2485.4,2485.3,0.80464]
[1750436505614,4.01241,2485.4,2485.3,0.80464]
[1750436505818,26.209,2485.5,2485.4,0.80461]
[1750436506214,27.01358,2485.5,2485.4,0.80461]
[1750436506918,26.209,2485.5,2485.2,1.3399]
[1750436507120,2.01153,2485.4,2484.9,2.92220001]
[1750436507324,0.80474,2485.0,2484.9,0.80475]
[1750436507619,27.00873,2485.1,2485.0,0.80474]
[1750436507814,26.204,2485.1,2484.6,2.1019]
[1750436508022,0.80484,2484.7,2484.6,0.80486]
[1750436508321,2.01197,2484.9,2484.2,12.54823]
[1750436508322,0.8049,2484.6,2484.5,0.80487]
[1750436508710,28.21502,2484.8,2484.3,1.3758]
[1750436508915,2.01234,2484.4,2483.9,0.7167]
[1750436509116,0.80506,2484.0,2483.9,1.52178]
[1750436509326,0.80506,2484.0,2483.9,0.80508]
[1750436509520,0.8051,2483.9,2483.8,0.8051]
[1750436509822,0.80503,2484.2,2484.1,0.80503]
[1750436510018,34.33403,2484.2,2484.1,0.80503]
[1750436510220,0.80505,2484.1,2484.0,0.80504]
[1750436510611,26.201,2484.1,2483.9,2.01275]
[1750436510816,26.2,2484.1,2484.0,4.01286]
[1750436511016,26.2,2484.1,2484.0,5.29186]
[1750436511517,26.2,2484.3,2484.2,0.805]
[1750436511917,27.00497,2484.3,2484.2,0.805]
[1750436512120,26.2,2484.3,2484.2,0.805]
[1750436512319,27.00497,2484.3,2484.2,0.805]
[1750436512512,27.00497,2484.3,2484.0,4.4868]
[1750436512513,0.696,2484.4,2484.0,4.4868]
[1750436512717,0.80492,2484.5,2484.1,2.01259]
[1750436512922,26.2,2484.5,2484.4,0.80493]
[1750436513120,0.80497,2484.3,2484.2,2.82256]
[1750436513318,0.80497,2484.3,2484.2,2.0176]
[1750436513521,0.80501,2484.2,2484.1,0.805]
[1750436513824,0.80505,2484.1,2484.0,0.80504]
[1750436514011,0.80502,2484.2,2484.1,0.80501]
[1750436514214,0.80498,2484.3,2484.2,0.80497]
[1750436514425,27.00298,2484.3,2484.2,0.80497]
[1750436514622,26.198,2484.3,2484.2,0.80497]
[1750436514923,0.80493,2484.5,2484.4,0.80494]
[1750436515421,0.80497,2484.4,2484.3,0.80495]
[1750436516124,0.80513,2483.8,2483.7,0.80516]
[1750436516330,0.80519,2483.7,2483.6,0.80517]